bitfinex-derivatives/quotes_ETHF0:USTF0_20250804
["timestamp","ask_amount","ask_price","bid_price","bid_amount"]
[1754330399238,43.6316,3681.1,3681.0,22.31467]
[1754330399435,43.6316,3681.1,3681.0,24.22107]
[1754330399835,41.6189,3681.1,3681.0,20.79257]
[1754330400034,1.9144,3681.0,3680.8,0.8177]
[1754330400234,1.9144,3680.7,3680.5,0.54334]
[1754330400436,4.746,3680.6,3680.5,0.6039]
[1754330400635,45.546,3680.6,3680.5,19.4639]
[1754330400840,45.546,3680.6,3680.5,18.86]
[1754330401837,45.546,3680.6,3680.5,23.6748]
[1754330401838,40.8,3680.6,3680.5,23.6748]
[1754330402648,42.693,3680.6,3680.5,23.6748]
[1754330403139,43.6316,3680.6,3680.5,23.6748]
[1754330403840,43.6316,3680.6,3680.4,3.75115]
[1754330403841,1.9144,3680.5,3680.4,0.54335]
[1754330404135,3.8074,3680.5,3680.4,23.28785]
[1754330404346,0.5709,3680.9,3680.8,4.4288]
[1754330404645,3.6719,3681.4,3681.3,5.35803]
[1754330404837,3.8074,3681.4,3681.3,5.35803]
[1754330405340,44.6074,3681.4,3681.3,5.35803]
[1754330406234,43.5333,3681.4,3681.3,5.35803]
[1754330406633,42.7695,3681.4,3681.3,4.23403]
[1754330406839,42.7695,3681.4,3681.3,5.35803]
[1754330407037,40.8,3681.4,3681.3,5.35803]
[1754330407441,1.0741,3682.2,3681.9,1.70454]
[1754330407637,1.81561614,3682.0,3681.9,23.86304]
[1754330408041,1.0,3682.0,3681.9,23.86304]
[1754330408338,0.95570122,3682.8,3682.7,1.92932]
[1754330408542,0.95570122,3682.9,3682.8,3.4396]
[1754330408744,4.746,3682.9,3682.8,3.4396]
[1754330408946,44.99633619,3682.9,3682.8,3.4396]
[1754330409139,42.47503619,3682.9,3682.8,3.4396]
[1754330409343,44.23253619,3682.9,3682.5,3.75084]
[1754330409645,1.9144,3682.2,3682.1,3.05341]
[1754330409840,4.746,3682.2,3682.1,21.90741]
[1754330410043,2.7333,3681.9,3681.8,2.5103]
[1754330410244,4.746,3681.9,3681.8,21.3623]
[1754330410643,1.9144,3681.9,3681.6,39.107]
[1754330410838,4.746,3681.7,3681.6,39.107]
[1754330411037,5.27043619,3681.7,3681.6,18.851]
[1754330411344,4.746,3681.4,3681.3,0.7824]
[1754330411645,4.746,3681.4,3681.3,19.6334]
[1754330411843,4.746,3681.4,3681.3,18.851]
[1754330412039,4.746,3681.4,3681.3,22.2906]
[1754330412244,5.27043619,3681.4,3681.3,22.2906]
[1754330413546,4.19633619,3681.4,3681.3,22.2906]
[1754330413753,46.07043619,3681.4,3681.3,19.6334]
[1754330414547,42.84273619,3681.4,3681.3,22.2906]
[1754330414750,44.15603619,3681.4,3681.3,19.6334]
[1754330414950,44.15603619,3681.4,3681.3,18.851]
[1754330415550,44.15603619,3681.4,3681.3,19.39423]
[1754330415943,44.15603619,3681.4,3681.1,1.32566]
[1754330416151,5.27043619,3681.3,3681.2,18.848]
[1754330416453,5.27043619,3681.3,3681.2,20.2343]
[1754330416653,5.27043619,3681.3,3681.2,21.3583]
[1754330416853,46.07043619,3681.3,3681.2,21.3583]
[1754330418048,41.32443619,3681.3,3681.2,22.2876]
[1754330418655,44.15603619,3681.3,3681.2,22.2876]
[1754330419254,43.08193619,3681.3,3681.2,22.2876]
[1754330419754,41.32443619,3681.3,3681.2,22.2876]
[1754330420152,43.08193619,3681.3,3681.2,22.2876]
[1754330420955,41.32443619,3681.3,3681.2,22.2876]
[1754330424360,0.95570122,3683.1,3683.0,0.54298]
[1754330424551,0.01597539,3683.3,3683.0,24.07768]
[1754330424755,7.0152,3683.7,3683.6,1.14679]
[1754330424959,3.8074,3683.7,3683.6,23.21059]
[1754330425554,3.8074,3683.7,3683.6,24.70319]
[1754330425754,2.9885,3683.7,3683.6,25.57169]
[1754330425960,4.3027,3684.0,3683.9,2.60464]
[1754330426162,4.3027,3684.0,3683.9,21.45764]
[1754330426461,8.4391,3684.0,3683.9,21.12954]
[1754330430557,8.4391,3684.0,3683.9,20.35864]
[1754330431456,8.4391,3684.0,3683.9,21.45764]
[1754330431660,8.4391,3684.0,3683.9,22.32614]
[1754330432563,4.2583,3684.0,3683.9,22.32614]
[1754330433561,0.9286,3684.0,3683.9,22.32614]
[1754330433763,2.0924,3684.6,3684.5,2.03044]
[1754330434062,5.2313,3684.6,3684.5,3.2078]
[1754330434268,8.4391,3684.6,3684.5,3.2078]
[1754330435558,3.2078,3684.6,3684.5,3.2078]
[1754330435760,5.2313,3684.8,3684.7,2.60453]
[1754330435962,8.4391,3684.8,3684.7,20.16594165]
[1754330436465,8.4391,3684.8,3684.7,19.59674165]
[1754330437361,8.4391,3684.8,3684.7,19.62074165]
[1754330438070,8.4391,3684.8,3684.7,0.76674165]
[1754330438255,8.4391,3684.8,3684.7,0.54273]
[1754330438457,8.4391,3684.8,3684.7,0.76674165]
[1754330438761,8.4391,3684.8,3684.7,0.76656779]
[1754330439962,8.4391,3684.8,3684.7,1.33576779]
[1754330440356,8.4391,3684.8,3684.7,0.76656779]
[1754330441569,5.2313,3684.6,3684.5,3.2078]
[1754330441866,8.4391,3684.6,3684.5,3.2078]
[1754330442263,5.2313,3684.4,3684.3,0.54277]
[1754330442871,8.4391,3684.4,3684.3,1.41777]
[1754330443073,8.4391,3684.4,3684.3,0.54277]
[1754330443260,1.0,3685.0,3684.3,1.4442]
[1754330443573,6.2313,3685.0,3684.9,2.4404]
[1754330443767,6.2313,3685.0,3684.9,0.5427]
[1754330443965,9.4391,3685.0,3684.9,0.5427]
[1754330449273,9.4391,3685.0,3684.9,3.6621]
[1754330449476,4.2078,3685.0,3684.9,3.0618]
[1754330449668,6.4104,3685.0,3684.9,5.1536]
[1754330450069,9.4391,3685.0,3684.9,5.1536]
[1754330450377,1.0,3685.0,3684.9,5.1536]
[1754330452172,0.5465,3685.0,3684.9,5.1536]
[1754330452362,1.71244938,3685.8,3685.7,3.95888]
[1754330452571,0.9286,3685.8,3685.7,25.99268]
[1754330452767,4.1364,3685.8,3685.7,25.99268]
[1754330452971,3.2078,3685.8,3685.7,25.99268]
[1754330453164,4.2583,3686.1,3686.0,1.98673]
[1754330453370,6.01591583,3686.1,3686.0,21.91473]
[1754330453571,9.22371583,3686.1,3686.0,22.13220233]
[1754330453768,9.22371583,3686.1,3686.0,19.04347233]
[1754330454074,5.2313,3685.8,3685.7,22.0318]
[1754330454274,9.22356471,3685.8,3685.7,22.0318]
[1754330454676,9.22356471,3685.8,3685.7,3.2078]
[1754330454974,9.22356471,3685.8,3685.7,22.0318]
[1754330456974,3.99226471,3685.8,3685.7,22.0318]
[1754330457176,9.15116471,3685.8,3685.7,3.2078]
[1754330457484,9.15116471,3685.8,3685.7,22.0318]
[1754330457868,9.15116471,3685.8,3685.7,3.2078]
[1754330458083,5.07982,3685.5,3685.4,18.823]
[1754330458281,5.94336471,3685.5,3685.4,18.823]
[1754330458590,5.70152,3685.4,3685.2,3.75045]
[1754330458881,2.58129,3685.0,3684.8,3.2078]
[1754330459076,5.2464,3684.9,3684.8,22.5735]
[1754330459375,8.3667,3684.9,3684.8,25.5929]
[1754330459573,5.1589,3685.6,3685.5,4.66401]
[1754330459773,6.90324907,3685.6,3685.5,4.1214]
[1754330459969,4.1832,3685.4,3685.3,0.54264]
[1754330460170,2.58124,3685.3,3685.2,0.54264]
[1754330460374,6.488691,3685.3,3685.2,0.54264]
[1754330460574,9.153851,3685.3,3685.1,19.36566]
[1754330460772,9.153851,3685.2,3685.1,19.36566]
[1754330461085,3.994951,3685.2,3685.0,24.35517]
[1754330461381,3.994951,3685.1,3685.0,24.35517]
[1754330461582,0.787151,3685.1,3685.0,24.35517]
[1754330462587,5.946051,3685.1,3685.0,23.48707]
[1754330463078,5.946051,3685.1,3685.0,24.35517]
[1754330463692,5.946051,3685.1,3685.0,23.48707]
[1754330465179,9.153851,3685.1,3685.0,4.66407]
[1754330465585,9.153851,3685.1,3685.0,23.48607]
[1754330465785,9.153851,3685.1,3685.0,18.822]
[1754330466282,9.153851,3685.1,3685.0,4.1214]
[1754330466480,9.153851,3685.1,3685.0,21.8414]
[1754330466676,9.153851,3685.1,3685.0,22.9434]
[1754330467178,4.800351,3685.1,3685.0,22.9434]
[1754330467385,9.153851,3685.1,3685.0,22.9434]
[1754330468089,8.3667,3685.1,3685.0,22.9434]
[1754330468684,0.54268,3685.0,3684.9,3.2078]
[1754330468885,8.3667,3685.0,3684.9,3.2078]
[1754330469186,8.3667,3685.0,3684.9,7.3292]
[1754330469386,8.3667,3685.0,3684.9,3.7939]
[1754330469588,8.3667,3685.0,3684.9,5.3364]
[1754330469783,8.3667,3685.0,3684.9,6.2272]
[1754330470882,8.3667,3685.0,3684.9,22.0298]
[1754330472191,8.3667,3685.0,3684.9,23.5284]
[1754330472694,8.3667,3685.0,3684.9,25.0492]
[1754330473389,8.3667,3685.0,3684.9,22.0298]
[1754330475190,8.3667,3685.0,3684.9,22.82866164]
[1754330475490,8.3667,3685.0,3684.9,23.74116164]
[1754330475684,8.3667,3685.0,3684.9,24.37116164]
[1754330475887,8.3667,3685.0,3684.9,5.54916897]
[1754330476092,8.3667,3685.0,3684.9,3.42056897]
[1754330476286,8.3667,3685.0,3684.9,22.24156897]
[1754330476486,8.3667,3685.0,3684.9,23.15406897]
[1754330476687,8.3667,3685.0,3684.9,25.26096897]
[1754330476889,8.3667,3685.0,3684.9,22.24156897]
[1754330477196,5.1589,3684.5,3684.4,0.54277]
[1754330477390,5.2464,3684.5,3684.4,19.36377]
[1754330477688,2.58137,3684.4,3684.2,0.54279]
[1754330477996,2.58137,3684.4,3684.3,18.821]
[1754330478493,5.2464,3684.4,3684.2,0.54279]
[1754330478698,8.3667,3684.3,3684.2,19.36379]
[1754330478898,8.3667,3684.3,3684.2,0.54279]
[1754330479090,8.3667,3684.3,3684.2,19.36379]
[1754330479291,8.3667,3684.3,3684.2,22.38319]
[1754330479498,8.3667,3684.3,3684.2,23.69789]
[1754330479690,3.8295,3684.3,3684.2,23.69789]
[1754330479891,3.2078,3684.3,3684.2,24.56599]
[1754330480191,3.2078,3685.0,3684.2,24.56599]
[1754330480192,2.04284,3685.3,3684.2,21.53495]
[1754330480491,5.1589,3684.9,3684.8,0.5861]
[1754330480692,3.1203,3684.8,3684.7,0.54272]
[1754330480990,8.3667,3684.8,3684.7,0.54272]
[1754330481191,4.5474,3684.6,3684.5,1.12885]
[1754330481395,5.1589,3684.6,3684.5,22.38315]
[1754330481592,8.3667,3684.6,3684.5,22.38315]
[1754330481794,7.391,3684.6,3684.5,23.25125]
[1754330481990,4.0965,3684.6,3684.5,24.56595]
[1754330482995,4.708,3684.6,3684.5,24.56595]
[1754330483198,7.391,3684.6,3684.5,24.56595]
[1754330483697,8.3667,3684.6,3684.5,23.69785]
[1754330484995,1.2332,3684.0,3683.9,3.2078]
[1754330485192,8.3667,3684.0,3683.9,3.2078]
[1754330485698,8.3667,3684.0,3683.9,7.4264]
[1754330486503,4.3398,3684.5,3684.4,2.0477]
[1754330486702,5.2868,3684.5,3684.4,1.4439]
[1754330486895,8.4946,3684.5,3684.4,1.4439]
[1754330487400,8.4946,3684.5,3684.4,0.5715]
[1754330487601,8.4946,3684.5,3684.2,0.9008]
[1754330487798,8.4946,3684.3,3684.2,3.4913]
[1754330487998,8.4946,3684.3,3684.2,2.9485]
[1754330488191,5.2868,3684.0,3683.9,3.2078]
[1754330488396,5.2868,3683.7,3683.6,0.54288]
[1754330488793,8.4946,3683.7,3683.6,0.54288]
[1754330488994,5.2868,3683.6,3683.4,3.2078]
[1754330489192,5.2868,3683.1,3683.0,3.41437803]
[1754330489402,8.05356844,3683.1,3683.0,4.2186]
[1754330489598,7.10656844,3683.1,3683.0,5.0885]
[1754330489999,8.05356844,3683.1,3683.0,5.0885]
[1754330490595,1.5032,3683.4,3683.3,4.76153]
[1754330490801,4.3398,3684.0,3683.9,4.2186]
[1754330491002,5.82964,3683.9,3683.8,0.54285]
[1754330491295,9.03744,3683.9,3683.8,2.61895]
[1754330491691,8.4946,3683.9,3683.8,2.61895]
[1754330492195,8.4946,3683.9,3683.8,1.14665]
[1754330492703,8.4946,3683.9,3683.1,19.7228]
[1754330492704,3.0282,3683.4,3683.1,19.7228]
[1754330492905,8.4946,3683.2,3683.1,22.31346]
[1754330493099,8.4946,3683.2,3683.1,23.58356]
[1754330493711,7.5476,3683.2,3683.1,24.45346]
[1754330493901,6.236,3683.2,3683.1,24.45346]
[1754330494101,5.5862,3683.2,3683.1,24.45346]
[1754330494799,4.711,3683.2,3683.1,24.45346]
[1754330495006,1.5032,3683.2,3683.1,24.45346]
[1754330495203,4.3782,3684.0,3683.9,0.54284]
[1754330495408,4.3782,3684.0,3683.9,3.49134]
[1754330495611,7.586,3684.0,3683.9,4.76144]
[1754330495810,8.4946,3684.0,3683.9,1.14664]
[1754330496111,3.57104,3683.9,3683.8,0.54285]
[1754330496316,5.2868,3683.9,3683.8,0.54285]
[1754330496515,8.4946,3683.9,3683.8,0.54285]
[1754330496713,4.3782,3683.5,3683.4,3.2078]
[1754330496914,8.4946,3683.5,3683.4,3.2078]
[1754330497714,8.4946,3683.5,3683.4,7.4264]
[1754330497908,0.54292,3683.4,3683.3,0.54292]
[1754330498114,8.4946,3683.4,3683.3,0.54292]
[1754330498420,8.4946,3683.4,3683.3,4.76152]
[1754330499819,8.4946,3683.4,3683.3,7.96932]
[1754330500016,5.82973,3683.3,3683.2,0.54294]
[1754330500220,5.2868,3683.3,3683.2,0.54294]
[1754330500410,3.2078,3684.3,3684.2,0.54278]
[1754330500616,3.3568,3684.1,3684.0,5.63133]
[1754330500815,5.2868,3684.1,3684.0,7.96923]
[1754330501112,7.735,3684.1,3684.0,2.59053]
[1754330501310,7.735,3684.1,3684.0,3.49133]
[1754330501522,7.735,3684.1,3684.0,4.76143]
[1754330501719,7.735,3684.1,3684.0,3.49133]
[1754330502821,7.735,3684.1,3684.0,4.76143]
[1754330505624,2.4482,3684.1,3684.0,4.18993]
[1754330505923,6.9914,3684.9,3684.8,4.18981]
[1754330506118,2.8366,3684.9,3684.8,4.18981]
[1754330506423,5.2848,3684.9,3684.8,4.18981]
[1754330507018,42.83042,3685.5,3685.4,0.54262]
[1754330507019,3.2078,3685.5,3685.4,0.54262]
[1754330507217,7.77762826,3685.5,3685.4,0.54262]
[1754330507417,10.22582826,3685.5,3685.4,0.54262]
[1754330507626,10.22582826,3685.5,3685.4,2.91962]
[1754330507918,10.22582826,3685.5,3685.4,4.18972]
[1754330508112,7.01802826,3685.5,3685.4,4.18972]
[1754330508526,5.70642826,3685.5,3685.4,4.18972]
[1754330508912,7.01802826,3685.5,3685.4,4.18972]
[1754330509624,6.2318,3685.5,3685.4,4.18972]
[1754330510724,7.735,3685.5,3685.4,4.76122]
[1754330511123,8.5213926,3685.5,3685.4,4.76122]
[1754330511525,7.0181926,3685.5,3685.4,4.18972]
[1754330511724,8.5213926,3685.5,3685.4,4.76122]
[1754330513821,7.5743926,3685.5,3685.4,4.76122]
[1754330514026,5.2868,3686.1,3686.0,3.49103]
[1754330514222,6.07336161,3686.1,3686.0,3.49103]
[1754330514428,6.33476161,3686.1,3686.0,4.73303]
[1754330514726,8.52156161,3686.1,3686.0,3.49103]
[1754330514921,5.82933,3686.0,3685.9,0.54254]
[1754330515120,6.61589161,3686.0,3685.8,0.54256]
[1754330515320,6.07336161,3685.9,3685.8,0.54256]
[1754330515520,8.52156161,3685.9,3685.8,0.54256]
[1754330515726,2.64616,3685.8,3685.7,0.54257]
[1754330515926,5.89116161,3685.8,3685.7,0.54257]
[1754330516127,8.33936161,3685.8,3685.7,0.54257]
[1754330516328,2.1036,3685.7,3685.5,3.7504]
[1754330516522,8.33936161,3685.6,3685.5,3.2078]
[1754330518225,2.1036,3685.4,3685.3,0.54263]
[1754330518528,0.8882,3685.3,3684.9,4.1047]
[1754330518830,5.1046,3685.1,3685.0,0.54268]
[1754330519228,7.5528,3685.1,3685.0,0.54268]
[1754330519633,7.5528,3685.1,3685.0,4.73658]
[1754330519932,5.44,3685.1,3685.0,4.73658]
[1754330520133,2.1538,3685.1,3685.0,5.60288]
[1754330520437,4.75902,3685.5,3685.4,0.54262]
[1754330520633,5.64722,3685.5,3685.4,0.54262]
[1754330520822,8.09542,3685.5,3685.4,0.54262]
[1754330521026,7.5528,3685.5,3685.4,0.54262]
[1754330521226,7.5528,3685.5,3685.4,4.73652]
[1754330521526,5.64717,3685.8,3685.7,0.54258]
[1754330521830,3.0577,3685.8,3685.7,4.73648]
[1754330522030,7.5528,3685.8,3685.7,4.73648]
[1754330522626,2.4482,3685.8,3685.7,0.54258]
[1754330522827,2.4482,3685.8,3685.7,3.50348]
[1754330523134,6.6489,3685.8,3685.7,4.73648]
[1754330523735,7.5528,3685.8,3685.7,4.73648]
[1754330524735,7.5528,3685.8,3685.7,3.50348]
[1754330525036,7.5528,3685.8,3685.4,2.1299]
[1754330525341,3.0075,3685.5,3685.4,0.54261]
[1754330525627,7.5528,3685.5,3685.4,1.2215]
[1754330527132,0.54253,3686.1,3685.9,0.54254]
[1754330527336,5.1046,3686.0,3685.9,3.50344]
[1754330527533,7.5528,3686.0,3685.9,4.73644]
[1754330528434,7.5528,3686.0,3685.9,4.1939]
[1754330528628,6.6646,3686.0,3685.9,4.1939]
[1754330528828,7.5528,3686.0,3685.9,2.9609]
[1754330529530,7.5528,3686.0,3685.9,2.064]
[1754330529730,2.1036,3685.8,3685.7,1.38507]
[1754330529931,8.09537,3685.8,3685.7,0.8425]
[1754330530335,8.09537,3685.8,3685.6,1.77559]
[1754330530534,5.1046,3685.7,3685.6,2.66099]
[1754330530832,5.1046,3685.7,3685.6,0.6145]
[1754330531038,5.1046,3685.4,3685.3,4.1939]
[1754330531535,2.0971,3685.4,3685.3,8.268]
[1754330531733,0.8882,3685.4,3685.3,8.268]
[1754330532240,5.1046,3685.9,3685.8,4.73646]
[1754330532427,0.8882,3685.9,3685.8,4.73646]
[1754330532632,5.1046,3685.9,3685.8,4.1939]
[1754330535443,1.7921,3685.8,3685.3,4.1047]
[1754330535735,1.35635,3686.0,3685.3,4.1047]
[1754330535736,5.1046,3685.4,3685.3,6.71134]
[1754330536138,5.1046,3685.4,3685.3,5.86884]
[1754330536536,5.1046,3685.4,3685.3,7.94434]
[1754330536734,5.1046,3685.4,3685.3,4.73654]
[1754330537440,5.1046,3685.4,3685.3,0.6145]
[1754330537738,7.5528,3685.4,3685.3,0.6145]
[1754330537926,7.5528,3685.4,3685.3,1.2215]
[1754330538130,7.5528,3685.4,3685.3,2.9609]
[1754330538534,7.5528,3685.4,3685.3,4.1939]
[1754330540041,6.6489,3685.4,3685.3,5.0602]
[1754330540741,7.5528,3685.4,3685.3,5.0602]
[1754330542439,6.3439,3685.4,3685.3,5.0602]
[1754330542642,0.54261,3685.5,3685.4,4.12952]
[1754330542941,5.64721,3685.5,3685.4,5.60282]
[1754330543343,5.64721,3685.5,3685.4,4.1939]
[1754330543542,5.64721,3685.5,3685.4,2.064]
[1754330543843,5.64727,3685.1,3685.0,2.9609]
[1754330544142,5.1046,3685.1,3685.0,3.50358]
[1754330544338,5.1046,3685.1,3685.0,4.73658]
[1754330544538,4.4613,3685.1,3685.0,5.60288]
[1754330545043,2.7194,3685.1,3685.0,5.60288]
[1754330545236,4.2007,3685.1,3685.0,5.60288]
[1754330545437,5.1046,3685.1,3685.0,4.73658]
[1754330545736,4.84508,3685.0,3684.9,3.2078]
[1754330545937,4.2677,3684.6,3684.5,8.76685]
[1754330546135,0.5427,3684.9,3684.8,2.58211]
[1754330546136,4.8451,3684.9,3684.8,2.58211]
[1754330546332,0.9227,3684.9,3684.8,5.55901]
[1754330546540,5.2251,3685.1,3685.0,4.70798]
[1754330548646,5.2251,3684.8,3684.7,2.70701]
[1754330548848,5.2251,3684.8,3684.7,4.70801]
[1754330549346,5.2251,3684.8,3684.7,5.55901]
[1754330549547,4.2677,3684.8,3684.7,5.55901]
[1754330550045,2.3763,3684.8,3684.7,5.55901]
[1754330551045,3.641,3684.8,3684.7,5.55901]
[1754330551245,1.5395,3684.8,3684.7,5.55901]
[1754330552247,2.8042,3684.8,3684.7,5.55901]
[1754330553043,0.9227,3684.8,3684.7,5.55901]
[1754330553851,2.8389,3685.1,3685.0,5.55898]
[1754330554048,1.8815,3685.1,3685.0,5.55898]
[1754330554245,2.7183,3685.1,3685.0,5.55898]
[1754330554447,5.2251,3685.1,3685.0,4.70798]
[1754330554748,5.7678,3684.9,3684.8,0.6061]
[1754330554945,5.7678,3684.9,3684.8,1.2267]
[1754330555139,5.7678,3684.9,3684.8,4.1653]
[1754330555747,5.7678,3684.9,3684.8,2.977]
[1754330555949,5.7678,3684.9,3684.8,4.1653]
[1754330557853,5.2251,3684.9,3684.8,4.1653]
[1754330558550,3.1236,3684.9,3684.8,5.0163]
[1754330558951,5.2251,3684.9,3684.8,5.0163]
[1754330560360,5.2251,3684.9,3684.8,4.1653]
[1754330560958,4.4725,3685.5,3684.8,3.2277]
[1754330561157,5.2251,3685.0,3684.9,4.1653]
[1754330561362,5.2251,3685.0,3684.9,7.9158]
[1754330566272,3.9604,3685.0,3684.9,7.9158]
[1754330566468,5.2251,3685.0,3684.9,7.9158]
[1754330566775,3.345,3685.6,3685.5,2.58201]
[1754330566975,4.3024,3685.6,3685.5,4.1653]
[1754330567175,5.2251,3685.3,3685.2,0.54264]
[1754330567369,7.6733,3685.3,3685.2,0.54264]
[1754330567569,7.6733,3685.3,3685.2,3.51964]
[1754330567774,7.6733,3685.3,3685.2,4.70794]
[1754330569071,5.2251,3685.3,3685.2,4.70794]
[1754330569668,4.2677,3685.8,3685.7,0.54258]
[1754330569975,5.05682411,3685.8,3685.7,1.48018]
[1754330570173,8.46242411,3685.8,3685.7,0.54258]
[1754330570374,5.2251,3685.7,3685.6,0.54258]
[1754330570772,0.54259,3685.6,3685.5,4.688]
[1754330570968,8.21589,3685.6,3685.5,2.0863]
[1754330571164,8.21589,3685.6,3685.5,0.5426]
[1754330571571,0.6168,3686.4,3686.3,0.54249]
[1754330571765,5.2251,3686.7,3686.6,3.51944]
[1754330571963,6.01410124,3686.7,3686.6,4.70774]
[1754330572168,7.76864124,3686.7,3686.6,4.70774]
[1754330573477,7.76864124,3686.7,3686.6,3.51944]
[1754330574864,7.76864124,3686.7,3686.6,1.14854]
[1754330575071,7.76864124,3686.7,3686.6,0.54244]
[1754330575271,5.2251,3686.6,3686.5,0.54245]
[1754330575774,6.97964,3686.6,3686.5,0.54245]
[1754330577480,6.97964,3686.6,3686.5,4.51265]
[1754330580777,6.97964,3686.6,3686.5,3.36355]
[1754330580978,6.97964,3686.6,3686.3,3.2078]
[1754330580979,2.58076,3686.5,3686.3,3.2078]
[1754330581184,4.9839,3686.2,3686.1,0.54251]
[1754330581682,6.73844,3686.2,3686.1,0.54251]
[1754330582472,4.9839,3686.2,3686.1,0.54251]
[1754330582673,6.73844,3686.2,3686.1,0.54251]
[1754330582878,6.73844,3686.2,3686.1,2.59391]
[1754330583084,6.73844,3686.2,3686.1,4.50691]
[1754330583479,6.73844,3686.2,3686.1,3.36361]
[1754330583680,6.73844,3686.2,3686.1,0.54251]
[1754330584684,6.73844,3686.2,3686.1,3.36361]
[1754330586382,6.73844,3686.2,3686.1,4.50691]
[1754330587890,4.9839,3686.2,3686.1,5.37541]
[1754330588484,4.9839,3686.7,3686.6,4.50683]
[1754330588885,6.73844,3686.7,3686.6,4.50683]
[1754330589087,2.0383,3686.9,3686.8,1.9431]
[1754330589282,1.4455,3686.4,3686.3,3.2078]
[1754330589488,6.73844,3686.4,3686.3,3.2078]
[1754330589881,6.73844,3686.4,3686.3,3.75029]
[1754330590090,6.73844,3686.4,3686.3,5.22749]
[1754330590993,6.73844,3686.4,3686.3,5.80169]
[1754330591384,0.8699,3686.7,3686.3,7.1722]
[1754330591592,1.4633,3687.0,3686.9,0.5424]
[1754330591795,4.9839,3687.0,3686.9,4.5068]
[1754330591998,6.73844,3687.0,3686.9,4.5068]
[1754330593599,2.62444,3687.0,3686.9,5.3753]
[1754330594099,5.86794,3687.0,3686.9,5.3753]
[1754330594296,6.73844,3687.0,3686.9,5.3753]
[1754330594504,6.73844,3687.0,3686.9,4.5068]
[1754330594697,6.73844,3687.0,3686.9,2.0514]
[1754330594997,6.73844,3687.0,3686.6,1.1433]
[1754330594998,4.9839,3686.7,3686.6,0.5992]
[1754330595302,4.9839,3686.4,3686.3,5.80169]
[1754330595498,6.73844,3686.4,3686.3,6.57139]
[1754330595694,6.73844,3686.4,3686.3,3.2078]
[1754330597503,6.73844,3686.4,3686.3,5.2592]
[1754330597696,6.73844,3686.4,3686.3,6.0289]
[1754330599205,1.75454,3686.4,3686.3,5.2592]
[1754330599499,6.73844,3686.4,3686.3,7.1722]
[1754330599899,6.73844,3686.4,3686.3,3.807]
[1754330600293,6.73844,3686.4,3686.3,0.5992]
[1754330600494,6.73844,3686.4,3686.3,3.9644]
[1754330602102,6.73844,3686.4,3686.3,2.8211]
[1754330602798,6.73844,3686.4,3686.3,3.9644]
[1754330603405,6.73844,3686.4,3686.3,4.8329]
[1754330605207,6.73844,3686.4,3686.3,3.9644]
[1754330605406,7.28092,3686.4,3686.2,0.5425]
[1754330605608,6.71614,3686.3,3686.2,2.037]
[1754330605803,4.3458,3686.1,3686.0,1.71623]
[1754330606107,6.71614,3686.1,3686.0,3.64633]
[1754330606405,4.9616,3686.1,3686.0,4.56743]
[1754330606998,0.54247,3686.5,3686.4,0.54247]
[1754330607298,5.50407,3686.5,3686.4,4.56737]
[1754330607504,7.25861,3686.5,3686.4,4.56737]
[1754330608006,7.25861,3686.5,3685.9,4.56414]
[1754330608007,5.5041,3686.3,3686.2,0.54249]
[1754330608504,6.71614,3686.3,3686.2,2.63729]
[1754330608806,6.71614,3686.3,3686.2,0.54249]
[1754330609703,6.71614,3686.3,3686.2,2.63729]
[1754330610004,1.9636,3686.0,3685.9,3.2078]
[1754330610206,4.9616,3686.0,3685.9,3.2078]
[1754330610500,4.9616,3686.0,3685.9,7.2327]
[1754330611103,4.9616,3686.0,3685.9,7.77523]
[1754330612504,1.5497,3686.0,3685.9,7.77523]
[1754330612809,4.9616,3686.0,3685.9,8.64273]
[1754330614002,4.9616,3686.0,3685.9,7.77523]
[1754330615408,4.9616,3686.0,3685.9,3.2078]
[1754330615602,4.9616,3686.0,3685.7,0.9211]
[1754330615603,2.998,3685.6,3685.5,2.63741]
[1754330615805,2.998,3685.6,3685.5,5.43501]
[1754330615806,4.9616,3685.6,3685.5,5.43501]
[1754330616902,4.1024,3685.6,3685.5,5.43501]
[1754330617209,4.9616,3685.8,3685.7,5.43498]
[1754330618107,4.9616,3685.8,3685.7,4.56748]
[1754330618308,4.56397,3686.5,3685.7,4.56748]
[1754330618309,4.9616,3686.2,3686.1,4.56741]
[1754330618508,4.9616,3686.2,3686.1,5.43491]
[1754330618707,6.71614,3686.2,3686.1,5.43491]
[1754330619110,6.71614,3686.2,3686.1,4.56741]
[1754330620908,4.9616,3686.5,3686.4,5.43487]
[1754330621307,6.71614,3686.5,3686.4,5.43487]
[1754330621509,6.71614,3686.5,3686.4,4.56737]
[1754330622406,0.54245,3686.6,3686.4,0.54247]
[1754330622608,4.9616,3686.5,3686.4,3.46157]
[1754330622805,4.9616,3686.5,3686.4,4.56737]
[1754330623811,5.50404,3686.7,3686.6,0.54243]
[1754330624006,4.0277,3686.0,3685.9,3.75035]
[1754330624309,5.78224,3686.0,3685.9,5.84515]
[1754330624507,5.78224,3686.0,3685.9,7.77525]
[1754330624508,4.9616,3686.0,3685.9,7.77525]
[1754330624712,1.9636,3685.9,3685.5,3.2078]
[1754330624900,4.9616,3685.4,3685.3,0.54262]
[1754330625103,4.1024,3685.4,3685.3,0.54262]
[1754330625299,4.9616,3685.4,3685.3,2.63742]
[1754330625506,4.9616,3685.4,3685.3,4.56752]